fUSD/lending_fUSD_20251217
["ID","MTS","AMOUNT","RATE_DAILY","PERIOD"]
[398914879,1765991439022,-1712.98475641,0.000159,2]
[398914880,1765991439031,-1712.9847564,0.000159,2]
[398914881,1765991439040,-1712.9847564,0.000159,2]
[398914882,1765991439050,-1712.9847564,0.000159,2]
[398914883,1765991439060,-1712.9847564,0.000159,2]
[398914884,1765991439069,-1712.9847564,0.000159,2]
[398914885,1765991439079,-166.66,0.00015927,2]
[398914886,1765991439088,-6057.33639153,0.00015948,2]
[398914887,1765991439100,-39109.70340847,0.00015948,2]
[398914888,1765991439110,-12842.586288,0.00016015,2]
[398914889,1765991439119,-242.45790232,0.00016016,2]
[398914890,1765991439128,-10479.56383821,0.00016016,2]
[398914891,1765991439138,-661.06,0.00016041,3]
[398914892,1765991439147,-500.0,0.0001605,2]
[398914893,1765991439156,-500.0,0.0001605,2]
[398914894,1765991439165,-224.07666052,0.0001605,2]
[398914895,1765991439175,-500.0,0.0001605,2]
[398914896,1765991439184,-347.09615964,0.0001605,2]
[398914897,1765991439193,-500.0,0.0001605,2]
[398914898,1765991439202,-493.15432385,0.0001605,2]
[398914899,1765991439211,-104839.04,0.00016051,2]
[398914900,1765991439221,-500.0,0.00016115,2]
[398914901,1765991439230,-1000.0,0.00016115,2]
[398914902,1765991439240,-1000.0,0.00016115,2]
[398914903,1765991439249,-1000.0,0.00016115,2]
[398914904,1765991439259,-1000.0,0.00016115,2]
[398914905,1765991439268,-1000.0,0.00016115,2]
[398914906,1765991439282,-1000.0,0.00016115,2]
[398914907,1765991439291,-1000.0,0.00016115,2]
[398914908,1765991439300,-1000.0,0.00016115,2]
[398914909,1765991439310,-1000.0,0.00016115,2]
[398914910,1765991439319,-1000.0,0.00016115,2]
[398914911,1765991439328,-225.73772161,0.00016115,2]
[398914912,1765991439338,-398.39,0.00016116,2]
[398914913,1765991439347,-28635.52,0.00016116,2]
[398914914,1765991439357,-1530.11,0.00016116,2]
[398914915,1765991439366,-9999.99,0.00016116,2]
[398914916,1765991439375,-999.99,0.00016116,2]
[398914917,1765991439384,-25642.6,0.00016116,2]
[398914918,1765991439394,-9999.99,0.00016116,2]
[398914919,1765991439403,-29204.14,0.00016116,2]
[398914920,1765991439412,-9999.99,0.00016116,2]
[398914921,1765991439422,-150.99,0.00016116,2]
[398914922,1765991439431,-510.31,0.00016116,2]
[398914923,1765991439439,-150.99,0.00016116,2]
[398914924,1765991439449,-9999.99,0.00016116,2]
[398914925,1765991439458,-3822.44,0.00016116,2]
[398914926,1765991439468,-9999.99,0.00016116,2]
[398914927,1765991439477,-2127.31,0.00016116,2]
[398914928,1765991439486,-166.67,0.00016144,2]
[398914929,1765991439495,-200.0,0.00016149,2]
[398914930,1765991439505,-500.0,0.00016149,2]
[398914931,1765991439514,-1051.88,0.00016158,2]
[398914932,1765991439523,-200.0,0.0001622,2]
[398914933,1765991439533,-512.98900848,0.00016269,2]
[398914934,1765991439542,-923.96065531,0.00016328,2]
[398914935,1765991439552,-151.0,0.00016335,2]
[398914936,1765991439561,-500.0,0.00016337,2]
[398914937,1765991439570,-500.0,0.00016337,2]
[398914938,1765991439580,-558.32,0.00016337,2]
[398914939,1765991439590,-500.0,0.00016337,2]
[398914940,1765991439599,-500.0,0.00016337,2]
[398914941,1765991439608,-500.0,0.00016337,2]
[398914942,1765991439617,-500.0,0.00016337,2]
[398914943,1765991439626,-520.67260897,0.00016337,2]
[398914944,1765991439635,-615.3449817,0.00016337,2]
[398914945,1765991439644,-419.6952445,0.00016338,2]
[398914946,1765991439653,-760000.0,0.00016338,2]
[398914947,1765991439663,-500.0,0.00016369,2]
[398914948,1765991439672,-500.0,0.00016369,2]
[398914949,1765991439682,-504.60053044,0.00016369,2]
[398914950,1765991439691,-500.0,0.00016369,2]
[398914951,1765991439700,-1051.88,0.00016432,2]
[398914952,1765991439709,-500.0,0.00016437,2]
[398914953,1765991439720,-500.0,0.00016437,2]
[398914954,1765991439729,-500.0,0.00016437,2]
[398914955,1765991439738,-500.0,0.00016437,2]
[398914956,1765991439747,-300.0,0.00016438,2]
[398914957,1765991439756,-300.0,0.00016438,2]
[398914958,1765991439766,-300.0,0.00016438,2]
[398914959,1765991439775,-300.0,0.00016438,2]
[398914960,1765991439785,-300.0,0.00016438,2]
[398914961,1765991439794,-300.0,0.00016438,2]
[398914962,1765991439803,-300.0,0.00016438,2]
[398914963,1765991439813,-300.0,0.00016438,2]
[398914964,1765991439822,-300.0,0.00016438,2]
[398914965,1765991439831,-300.0,0.00016438,2]
[398914966,1765991439840,-300.0,0.00016438,2]
[398914967,1765991439849,-300.0,0.00016438,2]
[398914968,1765991439859,-300.0,0.00016438,2]
[398914969,1765991439868,-300.0,0.00016438,2]
[398914970,1765991439877,-300.0,0.00016438,2]
[398914971,1765991439889,-300.0,0.00016438,2]
[398914972,1765991439899,-300.0,0.00016438,2]
[398914973,1765991439908,-300.0,0.00016438,2]
[398914974,1765991439918,-300.0,0.00016438,2]
[398914975,1765991439927,-300.0,0.00016438,2]
[398914976,1765991439936,-300.0,0.00016438,2]
[398914977,1765991439946,-300.0,0.00016438,2]
[398914978,1765991439955,-197.26900433,0.00016438,2]
[398914979,1765991439965,-500.0,0.00016438,2]
[398914980,1765991439978,-500.0,0.00016438,2]
[398914981,1765991439988,-500.0,0.00016438,2]
[398914982,1765991439998,-500.0,0.00016438,2]
[398914983,1765991440008,-350.00000001,0.00016438,2]
[398914984,1765991440018,-500.0,0.00016438,2]
[398914985,1765991440028,-500.0,0.00016438,2]
[398914986,1765991440038,-500.0,0.00016438,2]
[398914987,1765991440047,-500.0,0.00016438,2]
[398914988,1765991440057,-500.0,0.00016438,2]
[398914989,1765991440066,-500.0,0.00016438,2]
[398914990,1765991440076,-500.0,0.00016438,2]
[398914991,1765991440086,-671.38516469,0.00016438,2]
[398914992,1765991440095,-671.38516469,0.00016438,2]
[398914993,1765991440105,-671.38516469,0.00016438,2]
[398914994,1765991440115,-671.38516469,0.00016438,2]
[398914995,1765991440124,-671.38516469,0.00016438,2]
[398914996,1765991440133,-671.38516469,0.00016438,2]
[398914997,1765991440142,-671.38516469,0.00016438,2]
[398914998,1765991440151,-671.38516469,0.00016438,2]
[398914999,1765991440160,-671.38516469,0.00016438,2]
[398915000,1765991440169,-671.38516469,0.00016438,2]
[398915001,1765991440178,-671.38516469,0.00016438,2]
[398915002,1765991440187,-671.38516469,0.00016438,2]
[398915005,1765991440196,-671.38516469,0.00016438,2]
[398915007,1765991440205,-671.38516469,0.00016438,2]
[398915008,1765991440215,-671.38516469,0.00016438,2]
[398915009,1765991440224,-671.38516469,0.00016438,2]
[398915010,1765991440233,-671.38516469,0.00016438,2]
[398915011,1765991440242,-671.38516469,0.00016438,2]
[398915013,1765991440251,-671.38516469,0.00016438,2]
[398915015,1765991440262,-671.38516469,0.00016438,2]
[398915016,1765991440272,-671.38516469,0.00016438,2]
[398915017,1765991440281,-671.38516469,0.00016438,2]
[398915018,1765991440294,-671.38516469,0.00016438,2]
[398915019,1765991440304,-671.38516469,0.00016438,2]
[398915021,1765991440313,-671.38516469,0.00016438,2]
[398915023,1765991440323,-671.38516469,0.00016438,2]
[398915025,1765991440334,-671.38516469,0.00016438,2]
[398915027,1765991440343,-671.38516469,0.00016438,2]
[398915029,1765991440353,-671.38516469,0.00016438,2]
[398915031,1765991440362,-671.38516469,0.00016438,2]
[398915033,1765991440372,-671.38516469,0.00016438,2]
[398915035,1765991440381,-671.38516469,0.00016438,2]
[398915038,1765991440391,-671.38516469,0.00016438,2]
[398915040,1765991440401,-671.38516469,0.00016438,2]
[398915042,1765991440410,-671.38516469,0.00016438,2]
[398915044,1765991440419,-671.38516469,0.00016438,2]
[398915046,1765991440429,-671.38516469,0.00016438,2]
[398915048,1765991440438,-671.38516469,0.00016438,2]
[398915050,1765991440448,-671.38516469,0.00016438,2]
[398915052,1765991440457,-671.38516469,0.00016438,2]
[398915053,1765991440468,-671.38516469,0.00016438,2]
[398915056,1765991440482,-671.38516469,0.00016438,2]
[398915058,1765991440495,-671.38516469,0.00016438,2]
[398915060,1765991440505,-671.38516469,0.00016438,2]
[398915062,1765991440514,-671.38516469,0.00016438,2]
[398915064,1765991440523,-671.38516469,0.00016438,2]
[398915066,1765991440532,-671.38516469,0.00016438,2]
[398915067,1765991440542,-671.38516469,0.00016438,2]
[398915070,1765991440551,-671.38516469,0.00016438,2]
[398915072,1765991440560,-671.38516469,0.00016438,2]
[398915074,1765991440570,-671.38516469,0.00016438,2]
[398915076,1765991440579,-671.38516469,0.00016438,2]
[398915078,1765991440588,-671.38516469,0.00016438,2]
[398915079,1765991440598,-671.38516469,0.00016438,2]
[398915082,1765991440608,-671.38516469,0.00016438,2]
[398915083,1765991440617,-671.38516469,0.00016438,2]
[398915086,1765991440627,-671.38516469,0.00016438,2]
[398915088,1765991440636,-671.38516469,0.00016438,2]
[398915089,1765991440645,-670.50176315,0.00016438,2]
[398915091,1765991440654,-670.50176315,0.00016438,2]
[398915093,1765991440663,-670.50176315,0.00016438,2]
[398915096,1765991440672,-670.50176315,0.00016438,2]
[398915098,1765991440681,-670.50176315,0.00016438,2]
[398915100,1765991440691,-670.50176315,0.00016438,2]
[398915101,1765991440699,-670.50176315,0.00016438,2]
[398915104,1765991440709,-670.50176315,0.00016438,2]
[398915106,1765991440718,-670.50176315,0.00016438,2]
[398915108,1765991440731,-670.50176315,0.00016438,2]
[398915109,1765991440740,-670.50176315,0.00016438,2]
[398915111,1765991440749,-670.50176315,0.00016438,2]
[398915112,1765991440758,-670.50176315,0.00016438,2]
[398915113,1765991440767,-670.50176315,0.00016438,2]
[398915114,1765991440776,-670.50176315,0.00016438,2]
[398915115,1765991440785,-670.50176315,0.00016438,2]
[398915116,1765991440794,-670.50176315,0.00016438,2]
[398915117,1765991440803,-670.50176315,0.00016438,2]
[398915118,1765991440812,-670.50176308,0.00016438,2]
[398915119,1765991440821,-225.73,0.00016438,2]
[398915120,1765991440830,-5260.45880797,0.00016448,2]
[398915121,1765991440840,-266.49,0.00016494,2]
[398915122,1765991440849,-2351.0,0.00016564,2]
[398915123,1765991440858,-900.0,0.00016672,2]
[398915124,1765991440867,-200.0,0.00016697,2]
[398915126,1765991440876,-500.0,0.00016697,2]
[398915128,1765991440885,-1051.88,0.00016706,2]
[398915129,1765991440894,-433.0,0.00016825,2]
[398915130,1765991440903,-202.0,0.00016865,2]
[398915131,1765991440912,-10479.56383819,0.00016874,2]
[398915132,1765991440921,-587.0,0.00016882,2]
[398915133,1765991440931,-20252.1545,0.000169,2]
[398915134,1765991440940,-1000.0,0.000169,2]
[398915135,1765991440949,-634.47820322,0.000169,2]
[398915136,1765991440958,-220.84512367,0.000169,2]
[398915137,1765991440968,-503.38639446,0.000169,2]
[398915138,1765991440979,-714.62754035,0.000169,2]
[398915139,1765991440989,-199.82232698,0.00016914,2]
[398915140,1765991440998,-500.0,0.00016921,2]
[398915141,1765991441007,-500.0,0.00016921,2]
[398915142,1765991441017,-2291.85364901,0.00016925,2]
[398915143,1765991441026,-208127.66408102,0.00016958,2]
[398915144,1765991441036,-2198.0,0.00016959,2]
[398915145,1765991441045,-500.0,0.00016973,2]
[398915146,1765991441055,-500.0,0.00016973,2]
[398915147,1765991441064,-174.68173524,0.00016973,2]
[398915148,1765991441074,-500.0,0.00016973,2]
[398915150,1765991441083,-560.22978163,0.00016973,2]
[398915151,1765991441092,-163.6645509,0.00016973,2]
[398915152,1765991441102,-500.0,0.00016973,2]
[398915153,1765991441111,-500.0,0.00016973,2]
[398915154,1765991441121,-172.70389334,0.00016973,2]
[398915155,1765991441130,-500.0,0.00016973,2]
[398915156,1765991441139,-500.0,0.00016973,2]
[398915157,1765991441148,-500.0,0.00016973,2]
[398915158,1765991441157,-500.0,0.00016973,2]
[398915159,1765991441166,-500.0,0.00016973,2]
[398915160,1765991441175,-500.0,0.00016973,2]
[398915161,1765991441184,-163.04694688,0.00016973,2]
[398915162,1765991441194,-500.0,0.00016973,2]
[398915163,1765991441204,-216.18014628,0.00016973,2]
[398915164,1765991441213,-500.0,0.00016973,2]
[398915165,1765991441226,-501.15889228,0.00016973,2]
[398915166,1765991441236,-162.80787779,0.00016973,2]
[398915167,1765991441245,-500.0,0.00016973,2]
[398915168,1765991441254,-502.16839762,0.00016973,2]
[398915169,1765991441265,-161.46144241,0.00016973,2]
[398915170,1765991441275,-500.0,0.00016973,2]
[398915171,1765991441286,-500.0,0.00016973,2]
[398915172,1765991441295,-500.0,0.00016973,2]
[398915173,1765991441304,-500.0,0.00016973,2]
[398915174,1765991441315,-500.0,0.00016973,2]
[398915175,1765991441324,-500.0,0.00016973,2]
[398915176,1765991441333,-500.0,0.00016973,2]
[398915177,1765991441342,-202.22387202,0.00016973,2]
[398915178,1765991441353,-160.16120282,0.00016973,2]
[398915179,1765991441364,-500.0,0.00016973,2]
[398915180,1765991441373,-500.0,0.00016973,2]
[398915181,1765991441383,-150.0,0.00016973,2]
[398915182,1765991441394,-150.0,0.00016973,2]
[398915183,1765991441403,-12842.58628794,0.0001698,2]
[398915184,1765991441414,-1051.88,0.0001698,2]
[398915185,1765991441424,-2317.528,0.00016986,2]
[398915186,1765991441434,-500.0,0.00016986,2]
[398915187,1765991441443,-923.96065531,0.0001699,2]
[398915188,1765991441452,-500.0,0.00016996,2]
[398915189,1765991441462,-151.0,0.00016997,2]
[398915190,1765991441471,-151.0,0.00016997,2]
[398915191,1765991441480,-151.0,0.00016997,2]
[398915192,1765991441490,-500.0,0.00016998,2]
[398915193,1765991441499,-500.0,0.00016998,2]
[398915194,1765991441508,-500.0,0.00016998,2]
[398915195,1765991441517,-1807.47786259,0.00016999,5]
[398915196,1765991441526,-468.57497061,0.00016999,2]
[398915197,1765991441535,-150.0,0.00016999,2]
[398915198,1765991441545,-500.0,0.00016999,2]
[398915199,1765991441554,-500.0,0.00016999,2]
[398915200,1765991441563,-500.0,0.00016999,2]
[398915201,1765991441573,-500.0,0.00016999,2]
[398915202,1765991441582,-500.0,0.00016999,2]
[398915203,1765991441591,-500.0,0.00016999,2]
[398915204,1765991441600,-500.0,0.00016999,2]
[398915205,1765991441609,-500.0,0.00016999,2]
[398915206,1765991441619,-500.0,0.00016999,2]
[398915207,1765991441628,-500.0,0.00016999,2]
[398915208,1765991441637,-500.0,0.00016999,2]
[398915209,1765991441939,-2193621.53962393,0.00017,2]
[398915210,1765991441949,-250.0,0.00017,2]
[398915211,1765991441959,-9424.7757544,0.00017,2]
[398915212,1765991441969,-200.0,0.00017,2]
[398915213,1765991441979,-2709.1498257,0.00017,2]
[398915214,1765991441989,-1000.0,0.00017,2]
[398915215,1765991441999,-204148.6964786,0.00017,2]
[398915216,1765991442009,-2153.1604133,0.00017,2]
[398915217,1765991442019,-151.0,0.00017,2]
[398915218,1765991442028,-257.66456024,0.00017,2]
[398915219,1765991442038,-11588.8028664,0.00017,2]
[398915220,1765991442048,-200.0,0.0001711,2]
[398915221,1765991442058,-200.0,0.0001717,2]
[398915222,1765991442068,-207.4,0.00017244,2]
[398915223,1765991442078,-1051.88,0.00017254,2]
[398915224,1765991442088,-266.49,0.0001728,2]
[398915225,1765991442098,-500.0,0.00017318,2]
[398915226,1765991442107,-200.0,0.00017342,2]
[398915227,1765991442117,-9468.6124985,0.00017347,2]
[398915228,1765991442127,-166.67,0.00017374,2]
[398915229,1765991442136,-1600.0,0.00017425,2]
[398915230,1765991442146,-166.66,0.00017483,2]
[398915231,1765991442155,-200.0,0.00017515,2]
[398915232,1765991442164,-1000.0,0.00017521,2]
[398915233,1765991442174,-1000.0,0.00017521,2]
[398915234,1765991442184,-506.79331904,0.00017521,2]
[398915235,1765991442193,-300.33484235,0.00017521,2]
[398915236,1765991442203,-1000.0,0.00017521,2]
[398915237,1765991442213,-379.34447673,0.00017521,2]
[398915238,1765991442225,-500.0,0.00017521,2]
[398915239,1765991442235,-1000.0,0.00017521,2]
[398915240,1765991442245,-1000.0,0.00017521,2]
[398915241,1765991442255,-1051.8849234,0.00017528,2]
[398915242,1765991442264,-10479.56383819,0.00017732,2]
[398915243,1765991442273,-1000.0,0.00017786,2]
[398915244,1765991442283,-500.0,0.00017808,2]
[398915245,1765991442295,-500.0,0.00017808,2]
[398915246,1765991442305,-500.0,0.00017808,2]
[398915247,1765991442315,-500.0,0.00017808,2]
[398915248,1765991442324,-500.0,0.00017808,2]
[398915249,1765991442335,-500.0,0.00017808,2]
[398915250,1765991442345,-500.0,0.00017808,2]
[398915251,1765991442354,-500.0,0.00017808,2]
[398915252,1765991442365,-500.0,0.00017808,2]
[398915253,1765991442374,-500.0,0.00017808,2]
[398915254,1765991442383,-500.0,0.00017808,2]
[398915255,1765991442393,-362.0,0.00017808,2]
[398915256,1765991442405,-12842.58628794,0.00017945,2]
[398915257,1765991442415,-2112.7330231,0.00017981,2]
[398915258,1765991442424,-151.0,0.00017997,2]
[398915259,1765991442434,-500.0,0.00017999,2]
[398915260,1765991442443,-500.0,0.00017999,2]
[398915261,1765991442453,-11498.44893353,0.00017999,2]
[398915262,1765991442462,-231.17,0.00017999,2]
[398915263,1765991442472,-7028.58960775,0.00018,2]
[398915264,1765991442482,-309348.10497542,0.00018,2]
[398915265,1765991442491,-16350.82229886,0.00018,2]
[398915266,1765991442501,-12325.12199996,0.00018,2]
[398915267,1765991442510,-166.66,0.00018008,2]
[398915268,1765991442520,-150.0,0.00018025,2]
[398915269,1765991442530,-150.0,0.00018025,2]
[398915270,1765991442539,-150.0,0.00018025,2]
[398915271,1765991442549,-150.0,0.00018025,2]
[398915272,1765991442558,-150.0,0.00018025,2]
[398915273,1765991442568,-150.0,0.00018025,2]
[398915274,1765991442577,-150.91550183,0.00018025,2]
[398915275,1765991442587,-150.00000001,0.00018025,2]
[398915276,1765991442596,-150.0,0.00018025,2]
[398915277,1765991442605,-151.0803606,0.00018025,2]
[398915278,1765991442615,-150.0,0.00018025,2]
[398915279,1765991442624,-150.0,0.00018025,2]
[398915280,1765991442634,-900.0,0.00018042,2]
[398915281,1765991442643,-266.49,0.00018065,2]
[398915282,1765991442652,-1500.0,0.00018068,2]
[398915283,1765991442662,-1500.0,0.00018068,2]
[398915284,1765991442671,-1500.0,0.00018068,2]
[398915285,1765991442681,-1500.0,0.00018068,2]
[398915286,1765991442691,-1500.0,0.00018068,2]
[398915287,1765991442701,-1000.0,0.00018082,2]
[398915288,1765991442711,-500.0,0.000181,3]
[398915289,1765991442721,-167.19,0.00018101,2]
[398915290,1765991442730,-736.0,0.00018116,2]
[398915291,1765991442740,-3292.0,0.0001822,2]
[398915292,1765991442750,-150.0,0.00018275,2]
[398915293,1765991442759,-499.93,0.00018296,2]
[398915294,1765991442769,-20142.58992082,0.000183,2]
[398915295,1765991442779,-40438.37,0.00018356,2]
[398915296,1765991442788,-540.0,0.00018493,2]
[398915297,1765991442798,-150.0,0.00018525,2]
[398915298,1765991442808,-150.0,0.00018525,2]
[398915299,1765991442820,-166.66,0.00018533,2]
[398915300,1765991442830,-499.99999999,0.00018533,2]
[398915301,1765991442840,-10479.56383819,0.00018589,2]
[398915302,1765991442849,-1500.0,0.0001859,2]
[398915303,1765991442863,-1500.0,0.0001859,2]
[398915304,1765991442873,-1500.0,0.0001859,2]
[398915305,1765991442884,-2000.0,0.00018616,2]
[398915306,1765991442905,-684.93187764,0.00018616,2]
[398915307,1765991442915,-2000.0,0.00018616,2]
[398915308,1765991442924,-1241.18450961,0.00018616,2]
[398915309,1765991442934,-1126.97295087,0.00018616,2]
[398915310,1765991442944,-150.0,0.00018692,2]
[398915311,1765991442954,-10000.0,0.000187,2]
[398915312,1765991442964,-1408.53,0.00018735,2]
[398915313,1765991442975,-500.0,0.00018735,7]
[398915314,1765991442984,-1000.0,0.0001876,2]
[398915315,1765991442994,-500.0,0.00018773,2]
[398915316,1765991443004,-162.15907528,0.00018773,2]
[398915317,1765991443015,-569.87602686,0.00018773,2]
[398915318,1765991443025,-162.27451964,0.00018773,2]
[398915319,1765991443035,-500.0,0.00018773,2]
[398915320,1765991443045,-500.0,0.00018773,2]
[398915321,1765991443057,-500.0,0.00018773,2]
[398915322,1765991443067,-500.0,0.00018773,2]
[398915324,1765991443077,-500.0,0.00018773,2]
[398915326,1765991443086,-500.0,0.00018773,2]
[398915328,1765991443096,-500.0,0.00018773,2]
[398915330,1765991443106,-500.0,0.00018773,2]
[398915332,1765991443115,-500.0,0.00018773,2]
[398915334,1765991443125,-500.0,0.00018773,2]
[398915337,1765991443135,-500.0,0.00018773,2]
[398915339,1765991443144,-178.93750453,0.00018773,2]
[398915341,1765991443155,-500.0,0.00018773,2]
[398915342,1765991443164,-500.0,0.00018773,2]
[398915343,1765991443174,-500.0,0.00018773,2]
[398915345,1765991443183,-500.0,0.00018773,2]
[398915347,1765991443194,-150.0,0.00018773,2]
[398915349,1765991443203,-500.0,0.00018773,2]
[398915350,1765991443213,-500.0,0.00018773,2]
[398915351,1765991443223,-500.0,0.00018773,2]
[398915352,1765991443234,-500.0,0.00018773,2]
[398915354,1765991443244,-500.0,0.00018773,2]
[398915357,1765991443254,-500.0,0.00018773,2]
[398915359,1765991443263,-500.0,0.00018773,2]
[398915361,1765991443272,-500.0,0.00018773,2]
[398915363,1765991443286,-576.83817064,0.00018773,2]
[398915365,1765991443295,-500.0,0.00018773,2]
[398915366,1765991443306,-500.0,0.00018773,2]
[398915367,1765991443315,-500.0,0.00018773,2]
[398915368,1765991443328,-500.0,0.00018773,2]
[398915369,1765991443338,-500.0,0.00018773,2]
[398915370,1765991443349,-500.0,0.00018773,2]
[398915371,1765991443359,-500.0,0.00018773,2]
[398915372,1765991443368,-500.0,0.00018773,2]
[398915373,1765991443379,-500.0,0.00018773,2]
[398915374,1765991443389,-500.0,0.00018773,2]
[398915375,1765991443399,-500.0,0.00018773,2]
[398915376,1765991443409,-500.0,0.00018773,2]
[398915377,1765991443419,-500.0,0.00018773,2]
[398915378,1765991443429,-500.0,0.00018773,2]
[398915379,1765991443438,-500.0,0.00018773,2]
[398915380,1765991443448,-500.0,0.00018773,2]
[398915381,1765991443457,-500.0,0.00018773,2]
[398915382,1765991443467,-500.0,0.00018773,2]
[398915383,1765991443477,-500.0,0.00018773,2]
[398915384,1765991443488,-500.0,0.00018773,2]
[398915385,1765991443498,-500.0,0.00018773,2]
[398915386,1765991443508,-150.0,0.00018776,2]
[398915387,1765991443517,-150.91,0.000188,2]
[398915388,1765991443527,-150.91,0.000188,2]
[398915389,1765991443536,-150.91,0.000188,2]
[398915390,1765991443545,-150.91,0.000188,2]
[398915391,1765991443555,-150.91,0.000188,2]
[398915392,1765991443564,-150.91,0.000188,2]
[398915393,1765991443573,-150.91,0.000188,2]
[398915394,1765991443583,-150.91,0.000188,2]
[398915395,1765991443592,-150.91,0.000188,2]
[398915396,1765991443602,-150.91,0.000188,2]
[398915397,1765991443612,-150.91,0.000188,2]
[398915398,1765991443621,-150.91,0.000188,2]
[398915399,1765991443632,-150.91,0.000188,2]
[398915400,1765991443641,-150.91,0.000188,2]
[398915401,1765991443650,-150.91,0.000188,2]
[398915402,1765991443659,-150.91,0.000188,2]
[398915403,1765991443669,-150.91,0.000188,2]
[398915404,1765991443678,-150.91,0.000188,2]
[398915405,1765991443687,-150.91,0.000188,2]
[398915406,1765991443696,-150.91,0.000188,2]
[398915407,1765991443706,-150.91,0.000188,2]
[398915408,1765991443715,-150.91,0.000188,2]
[398915410,1765991443726,-150.91,0.000188,2]
[398915411,1765991443735,-150.91,0.000188,2]
[398915413,1765991443744,-150.91,0.000188,2]
[398915415,1765991443753,-150.91,0.000188,2]
[398915417,1765991443763,-150.91,0.000188,2]
[398915418,1765991443772,-9424.7757544,0.00018833,2]
[398915419,1765991443781,-266.49,0.0001885,2]
[398915420,1765991443790,-500.59058861,0.000189,3]
[398915421,1765991443800,-12842.58628794,0.0001891,2]
[398915422,1765991443809,-200.25,0.00018951,2]
[398915423,1765991443819,-150.0,0.00018973,2]
[398915424,1765991443829,-157.63541269,0.00019,2]
[398915425,1765991443838,-111085.05395839,0.00019,2]
[398915426,1765991443848,-5145.7748281,0.00019,2]
[398915427,1765991443858,-941.91499007,0.00019,2]
[398915428,1765991443868,-300.0,0.00019,2]
[398915429,1765991443877,-151.0,0.00019,2]
[398915430,1765991443887,-151.0,0.00019,2]
[398915431,1765991443896,-151.0,0.00019,2]
[398915432,1765991443906,-172.496934,0.00019,2]
[398915433,1765991443917,-151.0,0.00019,2]
[398915434,1765991443927,-151.0,0.00019,2]
[398915435,1765991443938,-151.0,0.00019,2]
[398915436,1765991443948,-151.0,0.00019,2]
[398915437,1765991443958,-405.033364,0.00019,2]
[398915438,1765991443968,-405.033364,0.00019,2]
[398915439,1765991443980,-405.033364,0.00019,2]
[398915440,1765991443990,-405.033364,0.00019,2]
[398915441,1765991444000,-248.941271,0.00019,2]
[398915442,1765991444009,-159.92,0.00019008,14]
[398915443,1765991444019,-150.0,0.00019026,2]
[398915444,1765991444029,-150.0,0.00019026,2]
[398915445,1765991444038,-150.0,0.00019026,2]
[398915446,1765991444048,-150.0,0.00019026,2]
[398915447,1765991444057,-150.0,0.00019026,2]
[398915448,1765991444067,-500.0,0.00019096,2]
[398915449,1765991444077,-45551.7313393,0.00019162,2]
[398915450,1765991444087,-2585.8114395,0.00019162,2]
[398915451,1765991444097,-151.0,0.00019162,2]
[398915452,1765991444107,-151.0,0.00019162,2]
[398915453,1765991444116,-151.0,0.00019162,2]
[398915454,1765991444125,-151.0,0.00019162,2]
[398915455,1765991444135,-151.0,0.00019162,2]
[398915456,1765991444144,-151.0,0.00019162,2]